bitfinex/quotes_BTCUSD_20250118
["timestamp","ask_amount","ask_price","bid_price","bid_amount"]
[1737190278593,0.15578149,103090.0,103080.0,0.09008593]
[1737190280374,0.37324246,103090.0,103080.0,0.09008593]
[1737190280558,0.47248327,103090.0,103080.0,0.09008593]
[1737190280931,0.54968327,103090.0,103080.0,0.09008593]
[1737190281927,0.47248327,103090.0,103080.0,0.09008593]
[1737190282604,0.64620665,103090.0,103080.0,0.09008593]
[1737190285283,0.54696584,103090.0,103080.0,0.18709793]
[1737190285652,0.54696584,103090.0,103080.0,0.09008593]
[1737190286027,0.54696584,103090.0,103080.0,0.18709793]
[1737190286455,0.54696584,103090.0,103080.0,0.09008593]
[1737190287622,0.37324246,103090.0,103080.0,0.09008593]
[1737190289363,0.37324246,103090.0,103080.0,0.18709793]
[1737190289739,0.37324246,103090.0,103080.0,0.09008593]
[1737190289944,0.54696584,103090.0,103080.0,0.09008593]
[1737190293440,0.55975757,103090.0,103080.0,0.09008593]
[1737190298254,0.38603419,103090.0,103080.0,0.09008593]
[1737190298475,0.38603419,103090.0,103080.0,0.18709793]
[1737190298675,0.38603419,103090.0,103080.0,0.09008593]
[1737190299403,0.55975757,103090.0,103080.0,0.09008593]
[1737190300647,0.38603419,103090.0,103080.0,0.09008593]
[1737190302005,0.28603419,103090.0,103080.0,0.09008593]
[1737190302157,0.38303619,103090.0,103080.0,0.09008593]
[1737190304592,0.68931545,103090.0,103080.0,0.09008593]
[1737190304777,0.98589958,103090.0,103080.0,0.09008593]
[1737190305342,0.98632748,103090.0,103080.0,0.09008593]
[1737190305877,0.46515735,103090.0,103080.0,0.09008593]
[1737190307311,1.04765967,103090.0,103080.0,0.09008593]
[1737190308914,0.46515735,103090.0,103080.0,0.09008593]
[1737190311302,0.69278307,103090.0,103080.0,0.09008593]
[1737190313822,0.73540835,103090.0,103080.0,0.09008593]
[1737190315685,0.69040835,103090.0,103080.0,0.09008593]
[1737190315926,0.61926503,103090.0,103080.0,0.09008593]
[1737190316341,0.69040835,103090.0,103080.0,0.09008593]
[1737190317299,0.69040835,103090.0,103080.0,0.18709793]
[1737190317300,0.56077189,103090.0,103080.0,0.18709793]
[1737190318736,0.46376989,103090.0,103080.0,0.18709793]
[1737190319940,0.56077189,103090.0,103080.0,0.18709793]
[1737190320953,0.46376989,103090.0,103080.0,0.18709793]
[1737190321153,0.68166072,103090.0,103080.0,0.18709793]
[1737190321355,0.77866272,103090.0,103080.0,0.18709793]
[1737190321858,0.68166072,103090.0,103080.0,0.18709793]
[1737190322353,0.77866272,103090.0,103080.0,0.18709793]
[1737190324577,0.77866272,103090.0,103080.0,0.18705793]
[1737190331997,0.56077457,103090.0,103080.0,0.18705793]
[1737190333948,0.46377257,103090.0,103080.0,0.18705793]
[1737190334078,0.56077457,103090.0,103080.0,0.18705793]
[1737190338213,0.38646405,103090.0,103080.0,0.18705793]
[1737190338679,0.28946205,103090.0,103080.0,0.18705793]
[1737190338793,0.38646405,103090.0,103080.0,0.18705793]
[1737190339686,0.28946205,103090.0,103080.0,0.18705793]
[1737190339831,0.38646405,103090.0,103080.0,0.18705793]
[1737190347398,0.21831873,103090.0,103080.0,0.33312791]
[1737190347633,0.21831873,103090.0,103080.0,0.65254206]
[1737190347900,0.21831873,103090.0,103080.0,0.75254206]
[1737190348204,0.21831873,103090.0,103080.0,0.92364538]
[1737190348408,0.14071473,103090.0,103080.0,0.92364538]
[1737190348555,0.29616194,103110.0,103100.0,0.492093]
[1737190348764,0.29616194,103110.0,103100.0,0.6184486]
[1737190349163,0.28100194,103110.0,103100.0,0.68959192]
[1737190349966,0.0004279,103120.0,103110.0,0.195083]
[1737190350218,0.0004279,103120.0,103110.0,0.29529335]
[1737190350436,0.0004279,103120.0,103110.0,0.29432381]
[1737190350662,0.0004279,103120.0,103110.0,0.29577462]
[1737190350854,0.0004279,103120.0,103110.0,0.44577462]
[1737190351061,0.0004279,103120.0,103110.0,0.66391794]
[1737190351538,0.0004279,103120.0,103110.0,0.59277462]
[1737190354695,0.0004279,103120.0,103110.0,0.70105077]
[1737190355059,0.0004279,103120.0,103110.0,0.72086854]
[1737190355271,0.0004279,103120.0,103110.0,0.61259239]
[1737190355670,0.0004279,103120.0,103110.0,0.72086854]
[1737190356889,0.0004279,103120.0,103110.0,0.61259239]
[1737190357089,0.0004279,103120.0,103110.0,0.82082854]
[1737190359052,0.0004279,103120.0,103110.0,0.71255239]
[1737190361931,0.0004279,103120.0,103110.0,0.82082854]
[1737190363662,9e-07,103120.0,103110.0,0.92910469]
[1737190363910,9e-07,103120.0,103110.0,0.93000307]
[1737190365359,0.5460279,103140.0,103130.0,0.401]
[1737190365560,0.0004279,103140.0,103130.0,0.81164096]
[1737190365761,0.0004279,103140.0,103130.0,0.81305091]
[1737190366604,0.00047832,103140.0,103130.0,0.81305091]
[1737190371287,0.00047832,103140.0,103130.0,0.81299662]
[1737190371640,0.18922186,103170.0,103160.0,0.096936]
[1737190371934,0.18972624,103170.0,103160.0,0.09832433]
[1737190373114,0.28665324,103170.0,103160.0,0.09832433]
[1737190374557,0.3948751,103170.0,103160.0,0.00138833]
[1737190374882,0.54041591,103170.0,103160.0,0.00138833]
[1737190375586,0.43262175,103170.0,103160.0,0.00138833]
[1737190375889,0.54084361,103170.0,103160.0,0.00138833]
[1737190376263,0.43262175,103170.0,103160.0,0.00138833]
[1737190377910,0.44226868,103170.0,103160.0,0.00138833]
[1737190379127,0.12823208,103170.0,103160.0,0.12229358]
[1737190379300,0.08193208,103170.0,103160.0,0.12132433]
[1737190380844,0.00093208,103170.0,103160.0,0.12132433]
[1737190381971,0.00093208,103170.0,103160.0,0.12229352]
[1737190384203,0.00093208,103170.0,103160.0,0.22153433]
[1737190384405,0.00093208,103170.0,103160.0,0.45186514]
[1737190384628,0.00093208,103170.0,103160.0,0.65182514]
[1737190384828,8e-08,103170.0,103160.0,0.69852514]
[1737190385004,0.0004,103190.0,103180.0,0.469878]
[1737190385207,2.5e-07,103190.0,103180.0,0.78426465]
[1737190385409,2.5e-07,103190.0,103180.0,0.67738051]
[1737190386141,2.5e-07,103190.0,103180.0,0.78560237]
[1737190386431,1.5e-07,103210.0,103200.0,0.574819]
[1737190386633,1.5e-07,103210.0,103200.0,0.71652379]
[1737190386771,1.5e-07,103210.0,103200.0,0.71786871]
[1737190388227,1.5e-07,103210.0,103200.0,0.82609057]
[1737190388573,1.5e-07,103210.0,103200.0,0.71786871]
[1737190390367,1.5e-07,103210.0,103200.0,0.85370075]
[1737190391640,1.5e-07,103210.0,103200.0,0.82609057]
[1737190391866,1.5e-07,103210.0,103200.0,0.85370075]
[1737190392067,1.5e-07,103210.0,103200.0,0.82609057]
[1737190392272,1.5e-07,103210.0,103200.0,0.69486871]
[1737190392470,1.5e-07,103210.0,103200.0,0.70102871]
[1737190392675,0.546028,103220.0,103210.0,0.246889]
[1737190392918,0.546028,103220.0,103210.0,0.34746644]
[1737190393076,0.65424986,103220.0,103210.0,0.09822563]
[1737190394196,0.65424986,103220.0,103210.0,0.12122563]
[1737190395105,0.20552986,103220.0,103210.0,0.09822563]
[1737190395507,0.10864986,103220.0,103210.0,0.09822563]
[1737190395701,0.6118089,103230.0,103210.0,0.09822563]
[1737190396023,0.10822186,103220.0,103210.0,0.29200363]
[1737190398298,0.20410186,103220.0,103210.0,0.00133663]
[1737190398518,0.28360186,103220.0,103210.0,0.00133663]
[1737190398848,0.38284267,103220.0,103210.0,0.00133663]
[1737190399631,0.6241,103200.0,103190.0,0.290706]
[1737190399807,0.0785,103200.0,103190.0,0.290706]
[1737190400015,0.18672186,103200.0,103190.0,0.290706]
[1737190401238,0.18672186,103210.0,103200.0,0.096899]
[1737190408425,0.0817,103190.0,103180.0,0.30056414]
[1737190408679,0.18992186,103190.0,103180.0,0.290737]
[1737190409052,0.28682986,103190.0,103180.0,0.290737]
[1737190409397,0.28682986,103190.0,103180.0,0.29199784]
[1737190410119,0.28682986,103190.0,103180.0,0.29815784]
[1737190410325,0.28682986,103190.0,103180.0,0.29199784]
[1737190410558,0.18992186,103190.0,103180.0,0.29815784]
[1737190412031,0.0817,103190.0,103180.0,0.29815784]
[1737190412236,0.18992186,103190.0,103180.0,0.29815784]
[1737190414228,0.18992186,103190.0,103180.0,0.29199784]
[1737190414435,0.18992186,103190.0,103180.0,0.29815784]
[1737190416247,0.18992186,103190.0,103180.0,0.29199784]
[1737190416405,0.18992186,103190.0,103180.0,0.29815784]
[1737190421145,0.18992186,103190.0,103180.0,0.29199784]
[1737190421517,0.18992186,103190.0,103180.0,0.29815784]
[1737190422495,0.18992186,103190.0,103180.0,0.29905643]
[1737190423238,0.18992186,103190.0,103180.0,0.29289643]
[1737190423389,0.18992186,103190.0,103180.0,0.29905643]
[1737190424245,0.18992186,103190.0,103180.0,0.29289643]
[1737190424459,0.18992186,103190.0,103180.0,0.29905643]
[1737190425038,0.18992186,103190.0,103180.0,0.29289643]
[1737190425368,0.18992186,103190.0,103180.0,0.29905643]
[1737190426413,0.18844443,103190.0,103180.0,0.29855466]
[1737190428233,0.18844443,103190.0,103180.0,0.29824922]
[1737190433153,0.290713,103200.0,103190.0,0.096908]
[1737190433154,0.0822,103200.0,103190.0,0.096908]
[1737190433357,0.19042186,103200.0,103190.0,0.096908]
[1737190433536,0.19042186,103210.0,103200.0,0.096899]
[1737190433740,0.0822,103210.0,103200.0,0.096899]
[1737190433964,0.10864916,103220.0,103200.0,0.00096894]
[1737190434282,0.19084916,103220.0,103210.0,0.103049]
[1737190434742,0.19084916,103220.0,103210.0,0.10431251]
[1737190436174,0.0826273,103220.0,103210.0,0.10431251]
[1737190436379,0.19084916,103220.0,103210.0,0.10431251]
[1737190438058,0.28772916,103220.0,103210.0,0.09815251]
[1737190438262,0.19084916,103220.0,103210.0,0.09815251]
[1737190438463,0.19084916,103220.0,103210.0,0.10431251]
[1737190439342,0.28772916,103220.0,103210.0,0.10431251]
[1737190439559,0.19084916,103220.0,103210.0,0.10431251]
[1737190440395,0.28772916,103220.0,103210.0,0.10431251]
[1737190440565,0.19084916,103220.0,103210.0,0.10431251]
[1737190440758,0.28772916,103220.0,103210.0,0.09815251]
[1737190440958,0.28772916,103220.0,103210.0,0.10431251]
[1737190441160,0.28772916,103220.0,103210.0,0.09815251]
[1737190441356,0.28772916,103220.0,103210.0,0.10431251]
[1737190441573,0.19084916,103220.0,103210.0,0.10431251]
[1737190442432,0.10864916,103220.0,103210.0,0.10431251]
[1737190443607,0.0004273,103220.0,103210.0,0.20561251]
[1737190443814,0.0004273,103220.0,103210.0,0.20658128]
[1737190444087,0.10864916,103220.0,103210.0,0.20561251]
[1737190444515,0.10864916,103220.0,103210.0,0.12731251]
[1737190444733,0.19104916,103220.0,103210.0,0.09815251]
[1737190444911,0.19104916,103220.0,103210.0,0.10431251]
[1737190445117,0.28792916,103220.0,103210.0,0.09815251]
[1737190445279,0.28792916,103220.0,103210.0,0.10431251]
[1737190446125,0.28792916,103220.0,103210.0,0.10427251]
[1737190446512,0.28792916,103220.0,103210.0,0.09815251]
[1737190446932,0.28792916,103220.0,103210.0,0.00742351]
[1737190447162,0.38716997,103220.0,103210.0,0.00126351]
[1737190448330,0.27894811,103220.0,103210.0,0.00126351]
[1737190448530,0.38716997,103220.0,103210.0,0.00126351]
[1737190449768,0.38716997,103220.0,103210.0,0.09815251]
[1737190449973,0.28792916,103220.0,103210.0,0.09815251]
[1737190451783,0.28792916,103220.0,103210.0,0.00126351]
[1737190452057,0.28792916,103220.0,103210.0,0.09815251]
[1737190452882,0.28792916,103220.0,103210.0,0.00126351]
[1737190453898,0.28792916,103220.0,103210.0,0.09815251]
[1737190454487,0.28792916,103220.0,103210.0,0.00126351]
[1737190455434,0.28792916,103220.0,103210.0,0.09815251]
[1737190455687,0.28792916,103220.0,103210.0,0.00126351]
[1737190457071,0.28792916,103220.0,103210.0,0.09815251]
[1737190458136,0.28792916,103220.0,103210.0,0.09146054]
[1737190458269,0.28792916,103220.0,103210.0,0.09267556]
[1737190458674,0.28792916,103220.0,103210.0,0.00121502]
[1737190459437,0.28792916,103220.0,103210.0,0.09810402]
[1737190461361,0.20552916,103220.0,103210.0,0.09810402]
[1737190466367,0.10864916,103220.0,103210.0,0.09810402]
[1737190466740,0.0008279,103230.0,103220.0,0.023]
[1737190466932,0.38242207,103240.0,103230.0,0.475671]
[1737190467060,0.38242207,103240.0,103230.0,0.60045579]
[1737190467061,0.38257329,103240.0,103230.0,0.60045579]
[1737190467256,0.38257329,103240.0,103230.0,0.60166826]
[1737190467678,0.38257329,103240.0,103230.0,0.62466826]
[1737190467878,0.00015122,103240.0,103230.0,0.71086128]
[1737190468300,0.00015122,103240.0,103230.0,0.70470128]
[1737190468512,0.00015122,103240.0,103230.0,0.71086128]
[1737190469301,0.00049069,103240.0,103230.0,0.81086128]
[1737190469929,0.00049069,103240.0,103230.0,0.83009941]
[1737190470553,0.00049069,103240.0,103230.0,1.27335733]
[1737190470963,0.5460278,103250.0,103240.0,0.119861]
[1737190471143,0.5460278,103250.0,103240.0,0.21910181]
[1737190471343,0.5460278,103250.0,103240.0,0.22030396]
[1737190472652,0.5460278,103250.0,103240.0,0.20346396]
[1737190472653,0.0004278,103250.0,103240.0,0.20346396]
[1737190472865,0.0004278,103250.0,103240.0,0.19827241]
[1737190473063,0.0004278,103250.0,103240.0,0.22743241]
[1737190473265,0.0004278,103250.0,103240.0,0.22646396]
[1737190473865,0.0004278,103250.0,103240.0,0.19730396]
[1737190474066,0.0004278,103250.0,103240.0,0.20443241]
[1737190474939,0.0004278,103250.0,103240.0,0.20346396]
[1737190475283,0.0004278,103250.0,103240.0,0.19730396]
[1737190475489,0.0004278,103250.0,103240.0,0.20346396]
[1737190481043,0.0004278,103250.0,103240.0,0.19730396]
[1737190481166,0.0004278,103250.0,103240.0,0.20346396]
[1737190483100,0.0004278,103250.0,103240.0,0.19730396]
[1737190483304,0.28540166,103250.0,103240.0,0.09806315]
[1737190484150,0.18854966,103250.0,103240.0,0.09806315]
[1737190484356,0.28540166,103250.0,103240.0,0.09806315]
[1737190484532,0.0803278,103250.0,103240.0,0.09806315]
[1737190485869,0.28540166,103250.0,103240.0,0.09806315]
[1737190487073,0.18854966,103250.0,103240.0,0.09806315]
[1737190487455,0.0803278,103250.0,103240.0,0.09806315]
[1737190488839,0.18854966,103250.0,103240.0,0.09806315]
[1737190489244,0.0803278,103250.0,103240.0,0.09806315]
[1737190489454,0.18854966,103250.0,103240.0,0.09806315]
[1737190491772,0.0004278,103250.0,103240.0,0.09806315]
[1737190492377,0.10864966,103250.0,103240.0,0.09806315]
[1737190493577,0.10864966,103250.0,103240.0,0.09896153]
[1737190494476,0.10864966,103250.0,103240.0,0.10512153]
[1737190494803,0.10864966,103250.0,103240.0,0.09896153]
[1737190495014,0.10864966,103250.0,103240.0,0.10512153]
[1737190495315,0.20550166,103250.0,103240.0,0.10512153]
[1737190495509,0.10864966,103250.0,103240.0,0.10512153]
[1737190495709,0.20550166,103250.0,103240.0,0.09896153]
[1737190495891,0.33230166,103250.0,103240.0,0.00210053]
[1737190496728,0.0972798,103250.0,103240.0,0.09896153]
[1737190496930,0.28680166,103250.0,103240.0,0.09896153]
[1737190498253,0.28680166,103250.0,103240.0,0.00210053]
[1737190498467,0.28680166,103250.0,103240.0,0.09896153]
[1737190498616,0.28680166,103250.0,103240.0,0.00210053]
[1737190499189,0.28680166,103250.0,103240.0,0.09896153]
[1737190499904,0.28680166,103250.0,103240.0,0.00210053]
[1737190500646,0.28680166,103250.0,103240.0,0.09896153]
[1737190501134,0.28680166,103250.0,103240.0,0.00210053]
[1737190501337,0.28680166,103250.0,103240.0,0.09896153]
[1737190501705,0.28680166,103250.0,103240.0,0.00210053]
[1737190501924,0.28680166,103250.0,103240.0,0.09896153]
[1737190502517,0.28680166,103250.0,103240.0,0.00210053]
[1737190503172,0.28680166,103250.0,103240.0,0.09896153]
[1737190503375,0.28680166,103250.0,103240.0,0.00210053]
[1737190503514,0.29650296,103250.0,103240.0,0.09896153]
[1737190504214,0.44124377,103250.0,103240.0,0.00210053]
[1737190505687,0.59124377,103250.0,103240.0,0.00210053]
[1737190505845,0.89870644,103250.0,103240.0,0.00210053]
[1737190506649,0.89870644,103250.0,103240.0,0.00206053]
[1737190506855,0.82246563,103250.0,103240.0,0.00206053]
[1737190507481,1.03947618,103250.0,103240.0,0.00206053]
[1737190508707,1.03947618,103250.0,103240.0,0.00089838]
[1737190508850,1.2137867,103250.0,103240.0,0.00089838]
[1737190509495,1.1137867,103250.0,103240.0,0.00089838]
[1737190509657,1.20218353,103250.0,103240.0,0.00089838]
[1737190510035,1.1137867,103250.0,103240.0,0.00089838]
[1737190511004,1.35097959,103250.0,103240.0,0.00089838]
[1737190512055,1.13309144,103250.0,103240.0,0.00089838]
[1737190515473,0.95878092,103250.0,103240.0,0.00089838]
[1737190520112,0.8289267,103250.0,103240.0,0.00089838]
[1737190520252,0.91522853,103250.0,103240.0,0.00089838]
[1737190522366,0.91522853,103250.0,103240.0,3.8e-07]
[1737190522575,0.301561,103240.0,103230.0,3.8e-07]
[1737190522691,0.70742367,103240.0,103230.0,3.8e-07]
[1737190522892,0.71564553,103240.0,103230.0,3.8e-07]
[1737190523089,0.71564553,103240.0,103210.0,0.00089859]
[1737190523090,0.47698,103220.0,103210.0,0.00089859]
[1737190523290,0.68444267,103220.0,103210.0,0.00104981]
[1737190524065,0.70744267,103220.0,103210.0,0.00104981]
[1737190524267,0.70744267,103220.0,103210.0,0.00217031]
[1737190524476,0.70744267,103220.0,103210.0,0.00104981]
[1737190524677,0.91490534,103220.0,103210.0,0.00217031]
[1737190524832,0.91490534,103220.0,103210.0,0.00104981]
[1737190525048,0.91490534,103220.0,103210.0,0.00217031]
[1737190525251,0.91490534,103220.0,103210.0,0.00104981]
[1737190525457,1.77950534,103220.0,103210.0,0.00217031]
[1737190525747,1.77950534,103220.0,103210.0,0.00104981]
[1737190526160,1.67950534,103220.0,103210.0,0.00104981]
[1737190527130,1.58026453,103220.0,103210.0,0.00104981]
[1737190528753,1.58989182,103220.0,103210.0,0.00217942]
[1737190529321,0.72529182,103220.0,103210.0,0.00104981]
[1737190529549,0.329408,103190.0,103180.0,0.00729859]
[1737190529766,0.53687067,103190.0,103180.0,0.00844715]
[1737190530163,0.63687067,103190.0,103180.0,0.00844715]
[1737190530848,0.74509253,103190.0,103180.0,0.00844715]
[1737190531514,0.84433334,103190.0,103180.0,0.00844715]
[1737190531664,0.86733334,103190.0,103180.0,0.00844715]
[1737190532024,0.90609034,103190.0,103180.0,0.00844715]
[1737190532645,0.80684953,103190.0,103180.0,0.00844715]
[1737190533455,0.77562767,103190.0,103180.0,0.00844715]
[1737190534343,0.66740581,103190.0,103180.0,0.00844715]
[1737190534548,0.77562767,103190.0,103180.0,0.00844715]
[1737190535033,0.67562767,103190.0,103180.0,0.00844715]
[1737190535231,0.77562767,103190.0,103180.0,0.00844715]
[1737190535617,0.67562767,103190.0,103180.0,0.00844715]
[1737190535820,0.78549838,103190.0,103180.0,0.00844715]
[1737190536174,0.68549838,103190.0,103180.0,0.00844715]
[1737190536405,0.78549838,103190.0,103180.0,0.00844715]
[1737190537236,0.89372024,103190.0,103180.0,0.00844715]
[1737190537653,0.99296105,103190.0,103180.0,0.00844715]
[1737190538212,0.89372024,103190.0,103180.0,0.00844715]
[1737190539256,0.78549838,103190.0,103180.0,0.00844715]
[1737190539470,0.89372024,103190.0,103180.0,0.00844715]
[1737190540069,0.68549838,103190.0,103180.0,0.00844715]
[1737190540292,0.78549838,103190.0,103180.0,0.00844715]
[1737190543761,0.89372024,103190.0,103180.0,0.00844715]
[1737190543956,0.78549838,103190.0,103180.0,0.00844715]
[1737190545004,0.89372024,103190.0,103180.0,0.00844715]
[1737190546133,0.88473919,103190.0,103180.0,0.00844715]
[1737190546925,0.99296105,103190.0,103180.0,0.00844715]
[1737190547993,0.88473919,103190.0,103180.0,0.00844715]
[1737190550030,0.99296105,103190.0,103180.0,0.00844715]
[1737190553877,0.89296105,103190.0,103180.0,0.00844715]
[1737190554084,0.68549838,103190.0,103180.0,0.00844715]
[1737190554343,0.70299838,103190.0,103180.0,0.00844715]
[1737190557211,0.81122024,103190.0,103180.0,0.00844715]
[1737190557447,0.89162024,103190.0,103180.0,0.00844715]
[1737190561110,0.68339838,103190.0,103180.0,0.00844715]
[1737190561323,0.70299838,103190.0,103180.0,0.00844715]
[1737190562218,0.59477652,103190.0,103180.0,0.00844715]
[1737190562416,0.70299838,103190.0,103180.0,0.00844715]
[1737190567634,0.70299838,103190.0,103180.0,0.00840715]
[1737190568033,0.78339838,103190.0,103180.0,0.00840715]
[1737190568258,0.89162024,103190.0,103180.0,0.00840715]
[1737190568439,0.79162024,103190.0,103180.0,0.00840715]
[1737190569260,1.07471945,103190.0,103180.0,0.00840715]
[1737190569671,1.18294131,103190.0,103180.0,0.00840715]
[1737190570482,1.31367313,103190.0,103180.0,0.00840715]
[1737190572632,1.18381891,103190.0,103180.0,0.00840715]
[1737190573097,1.20681891,103190.0,103180.0,0.00840715]
[1737190574368,1.30605972,103190.0,103180.0,0.00840715]
[1737190575207,1.29233427,103190.0,103180.0,0.00840715]
[1737190576287,1.07444612,103190.0,103180.0,0.00840715]
[1737190577242,0.84398345,103190.0,103180.0,0.00840715]
[1737190577438,0.94398345,103190.0,103180.0,0.00840715]
[1737190577642,1.04398345,103190.0,103180.0,0.00840715]
[1737190577824,0.86358345,103190.0,103180.0,0.00840715]
[1737190581218,1.08148266,103190.0,103180.0,0.00840715]
[1737190582444,0.98148266,103190.0,103180.0,0.00840715]
[1737190583469,1.01532394,103190.0,103180.0,0.00840715]
[1737190586499,0.7236887,103190.0,103180.0,0.05480715]
[1737190586710,0.54994375,103190.0,103180.0,0.22982515]
[1737190586914,0.47891218,103190.0,103180.0,0.22982515]
[1737190587191,0.54994375,103190.0,103180.0,0.22982515]
[1737190588065,0.07145947,103190.0,103180.0,0.22982515]
[1737190588225,0.16836747,103190.0,103180.0,0.22982515]
[1737190588609,0.16836747,103190.0,103180.0,0.13290715]
[1737190588837,0.16836747,103190.0,103180.0,0.22982515]
[1737190589057,0.16836747,103190.0,103180.0,0.31548326]
[1737190589414,0.1086068,103190.0,103180.0,0.31548326]
[1737190589622,0.2055148,103190.0,103180.0,0.31548326]
[1737190590283,0.2055148,103190.0,103180.0,0.22982515]
[1737190591973,0.0004279,103190.0,103180.0,0.22982515]
[1737190592591,0.0004279,103190.0,103180.0,0.35206596]
[1737190593180,0.0004279,103190.0,103180.0,0.50206596]
[1737190594351,0.0004279,103190.0,103180.0,0.60206596]
[1737190594911,0.0004279,103190.0,103180.0,1.43150566]
[1737190596129,0.0004279,103190.0,103180.0,1.30275381]
[1737190597114,0.0004279,103190.0,103180.0,0.82567973]
[1737190597726,0.0004279,103190.0,103180.0,0.93385863]
[1737190597951,0.5456,103200.0,103190.0,0.344408]
[1737190598151,0.5456,103200.0,103190.0,0.44364881]
[1737190598307,0.5456,103200.0,103190.0,0.44481599]
[1737190598770,0.5456,103200.0,103190.0,0.59481599]
[1737190604346,0.5456,103200.0,103190.0,0.49481599]
[1737190604554,0.5456,103200.0,103190.0,0.59481599]
[1737190605236,0.5456,103200.0,103190.0,0.49481599]
[1737190606573,0.5456,103200.0,103190.0,0.50093599]
[1737190609275,0.5456,103200.0,103190.0,0.37257518]
[1737190609500,0.6542068,103200.0,103190.0,0.37869518]
[1737190609898,0.6542068,103200.0,103190.0,0.22869518]
[1737190610232,0.1086068,103200.0,103190.0,0.22869518]
[1737190610782,0.0004279,103200.0,103190.0,0.22869518]
[1737190611219,0.1086068,103200.0,103190.0,0.22869518]
[1737190611431,0.0004279,103200.0,103190.0,0.22869518]
[1737190611902,0.1086068,103200.0,103190.0,0.22869518]
[1737190613623,0.1086068,103200.0,103190.0,0.22257518]
[1737190617041,0.0004279,103200.0,103190.0,0.22257518]
[1737190617234,0.2055058,103200.0,103190.0,0.22257518]
[1737190617415,0.1086068,103200.0,103190.0,0.14447518]
[1737190618613,0.0004279,103200.0,103190.0,0.14447518]
[1737190618791,0.1086068,103200.0,103190.0,0.14447518]
[1737190621682,0.0004279,103200.0,103190.0,0.14544418]
[1737190621811,0.0004279,103200.0,103190.0,0.22414277]
[1737190622019,0.0004279,103200.0,103190.0,0.22317377]
[1737190625901,0.0004279,103200.0,103190.0,0.14537377]
[1737190627409,0.07140344,103200.0,103190.0,0.14537377]
[1737190628567,0.23927798,103200.0,103190.0,0.09897377]
[1737190628757,0.23927798,103200.0,103190.0,0.09893377]
[1737190628758,0.14237898,103200.0,103190.0,0.09893377]
[1737190629466,0.10858976,103200.0,103190.0,0.09893377]
[1737190631978,0.0004279,103200.0,103190.0,0.14883377]
[1737190633337,0.10858976,103200.0,103190.0,0.09893377]
[1737190635420,0.0004279,103200.0,103190.0,0.09893377]
[1737190637445,0.0004279,103200.0,103190.0,0.18432721]
[1737190639878,0.0004279,103200.0,103190.0,0.31281438]
[1737190641044,0.0004279,103200.0,103190.0,0.80086131]
[1737190641723,0.0004279,103200.0,103190.0,0.31281438]
[1737190643596,0.0004279,103200.0,103190.0,0.43505519]
[1737190643802,0.0004279,103200.0,103190.0,0.56555519]
[1737190645377,0.0004279,103200.0,103190.0,1.26776306]
[1737190646156,0.0004279,103200.0,103190.0,0.95101671]
[1737190647848,0.0004279,103200.0,103190.0,1.05388245]
[1737190648563,0.10858976,103200.0,103190.0,0.80726164]
[1737190649150,0.10858976,103200.0,103190.0,0.80114164]
[1737190650311,0.10858976,103200.0,103190.0,0.63035075]
[1737190651303,0.10858976,103200.0,103190.0,0.80166698]
[1737190651880,0.0004279,103200.0,103190.0,0.80166698]
[1737190652356,0.0004279,103200.0,103190.0,0.92390779]
[1737190652578,0.0004279,103200.0,103190.0,0.93002779]
[1737190653734,0.0004279,103200.0,103190.0,0.92950245]
[1737190653930,0.10858976,103200.0,103190.0,0.80114164]
[1737190655628,0.10858976,103200.0,103190.0,0.63043957]
[1737190656260,0.48939143,103200.0,103190.0,0.53357157]
[1737190656599,0.53909143,103200.0,103190.0,0.53357157]
[1737190657977,0.62620494,103200.0,103190.0,0.00206577]
[1737190659178,0.54892715,103200.0,103190.0,0.00206577]
[1737190672699,0.44076529,103200.0,103190.0,0.00206577]
[1737190672901,0.54892715,103200.0,103190.0,0.00206577]
[1737190685329,0.47461057,103200.0,103190.0,0.00206577]
[1737190685587,0.42491057,103200.0,103190.0,0.00206577]
[1737190689579,0.42491057,103200.0,103190.0,0.00202577]
[1737190691297,0.193819,103190.0,103170.0,0.709226]
[1737190691593,0.29073,103190.0,103180.0,0.096916]
[1737190692694,0.36173357,103190.0,103180.0,0.096916]
[1737190692900,0.37980343,103200.0,103170.0,0.1277]
[1737190693101,0.0004279,103200.0,103190.0,0.096908]
[1737190693337,0.23933404,103200.0,103190.0,0.096908]
[1737190697092,0.23933404,103200.0,103190.0,0.09814763]
[1737190698199,0.23933404,103200.0,103190.0,0.00123963]
[1737190698518,0.33857485,103200.0,103190.0,0.00123963]
[1737190701935,0.23933404,103200.0,103190.0,0.00123963]
[1737190702120,0.23933404,103200.0,103190.0,0.09814763]
[1737190703136,0.16833047,103200.0,103190.0,0.09814763]
[1737190704726,0.23933404,103200.0,103190.0,0.09814763]
[1737190705464,0.23933404,103200.0,103190.0,0.00123963]
[1737190706921,0.0973269,103200.0,103190.0,0.09814763]
[1737190707219,0.23933404,103200.0,103190.0,0.00123963]
[1737190709323,0.23933404,103200.0,103190.0,0.09814763]
[1737190709718,0.23933404,103200.0,103190.0,0.00123963]
[1737190713181,0.23933404,103200.0,103190.0,0.09814763]
[1737190713585,0.23933404,103200.0,103190.0,0.00123963]
[1737190715028,0.23933404,103200.0,103190.0,0.09814763]
[1737190716431,0.23933404,103200.0,103190.0,0.00123963]
[1737190716777,0.16833047,103200.0,103190.0,0.09814763]
[1737190716991,0.23933404,103200.0,103190.0,0.09814763]
[1737190719543,0.23933404,103200.0,103190.0,0.00123963]
[1737190721125,0.23933404,103200.0,103190.0,0.09814763]
[1737190721326,0.23933404,103200.0,103190.0,0.00123963]
[1737190722434,0.31813404,103200.0,103190.0,0.00123963]
[1737190728943,0.41737485,103200.0,103190.0,0.00123963]
[1737190730927,0.27536771,103200.0,103190.0,0.00123963]
[1737190731131,0.41737485,103200.0,103190.0,0.00123963]
[1737190734346,0.41737485,103200.0,103190.0,0.00119274]
[1737190735942,0.63837842,103200.0,103190.0,0.00119274]
[1737190736143,0.78567842,103200.0,103190.0,0.00119274]
[1737190736569,1.0034622,103200.0,103190.0,0.00119274]
[1737190738115,1.4578092,103200.0,103190.0,0.00119274]
[1737190738418,1.395473,103200.0,103190.0,0.00119274]
[1737190739100,1.18246229,103200.0,103190.0,0.00119274]
[1737190739265,1.16982093,103200.0,103190.0,0.00119274]
[1737190745647,0.99559391,103200.0,103190.0,0.00119274]
[1737190747335,0.99559391,103200.0,103190.0,0.00095434]
[1737190749248,0.99559391,103200.0,103190.0,0.00185293]
[1737190749476,0.99602181,103200.0,103190.0,0.00185293]
[1737190750003,0.99602181,103200.0,103190.0,0.00181293]
[1737190750288,0.99602181,103200.0,103190.0,0.00208489]
[1737190750490,1.09602181,103200.0,103190.0,0.00208489]
[1737190751428,1.4009191,103200.0,103190.0,0.00208489]
[1737190752753,1.27024883,103200.0,103190.0,0.00208489]
[1737190753148,1.17024883,103200.0,103190.0,0.00208489]
[1737190754988,1.18931899,103200.0,103190.0,0.00208489]
[1737190755186,1.2885598,103200.0,103190.0,0.00208489]
[1737190755359,1.11433278,103200.0,103190.0,0.00208489]
[1737190756909,1.01509197,103200.0,103190.0,0.00208489]
[1737190758746,1.16991341,103200.0,103190.0,0.00208489]